Cogmind - Beta 11.1 @@@ ROGUE MODE // 2022.05.31 @ 15:40:26 Player: Demise Result: Destroyed by G-34 Mercenary with Small Laser Performance ------------- Evolutions (0) 0 Regions Visited (4) 800 Robots Destroyed (50) 250 Value Destroyed (896) 896 Prototype IDs (40) 800 Alien Tech Used (0) 0 Bonus (307) 307 TOTAL SCORE: 3053 Bonus ------- Follower Combat Kills 7 Aligned with FarCom 300 Cogmind --------- Core Integrity 0/250 Matter 266/300 Energy 280/280 System Corruption 0% Temperature Warm (102) Movement Rolling (155) Ox5 Location -9/Mines Parts ------- > --- POWER (1) -------- Heavy Ion Engine > --- PROPULSION (2) --- Wheel Wheel > --- UTILITY (2) ------ Huge Storage Unit Hardened Medium Armor Plating > --- WEAPON (2) ------- Improved Light Cannon Improved Light Cannon > --- INVENTORY (25) --- Heavy Ion Engine Nuclear Core Fission Core Light Fission Core Armored Treads Huge Storage Unit Advanced Visual Processing Unit Experimental Sensor Array Signal Interpreter Seismic Detector Improved Targeting Computer Improved Targeting Computer Improved Propulsion Shielding Weapon Shielding Weapon Shielding Hacking Suite Improved Trap Extractor (1/6 Explosive) Chronowheel Light Assault Rifle Light Assault Rifle Improved Light Cannon EMP Blaster EMP Blaster Mini Grenade Launcher Plasma Cutter Peak State ------------ > --- POWER ------------ Heavy Ion Engine > --- PROPULSION ------- Wheel Wheel > --- UTILITY ---------- Huge Storage Unit Hardened Medium Armor Plating > --- WEAPON ----------- Improved Light Cannon Improved Light Cannon > --- INVENTORY -------- Heavy Ion Engine Nuclear Core Fission Core Light Fission Core Armored Treads Huge Storage Unit Advanced Visual Processing Unit Experimental Sensor Array Signal Interpreter Seismic Detector Improved Targeting Computer Improved Targeting Computer Improved Propulsion Shielding Weapon Shielding Weapon Shielding Hacking Suite Improved Trap Extractor Chronowheel Light Assault Rifle Light Assault Rifle Improved Light Cannon EMP Blaster EMP Blaster Mini Grenade Launcher Plasma Cutter [Rating: 20] Favorites ----------- Power Heavy Ion Engine Engine Heavy Ion Engine Power Core Light Nuclear Core Propulsion Wheel Wheel Wheel Utility Huge Storage Unit Device Seismic Detector Storage Huge Storage Unit Processor Signal Interpreter Protection Hardened Medium Armor Plating Weapon Improved Light Cannon Energy Gun Medium Laser Ballistic Gun Assault Rifle Ballistic Cannon Improved Light Cannon Launcher EMP Blaster Special Weapon Plasma Cutter Special Melee Weapon Datajack Build | -11 -10 -10 -10 -9 ------- Run | Scr Mat Min Exi Min Slots Evolved . | . . . . . Power . | . . . . . Propulsion . | . . . . . Utility . | . . . . . Weapon . | . . . . . Parts Attached 69 | 6 48 11 3 1 Power 4 | 1 2 1 . . Engine 3 | 1 1 1 . . Core 1 | . 1 . . . Reactor . | . . . . . Propulsion 16 | 2 11 2 . 1 Treads . | . . . . . Leg . | . . . . . Wheel 16 | 2 11 2 . 1 Hover . | . . . . . Flight . | . . . . . Utility 25 | 1 16 6 2 . Device 17 | 1 11 4 1 . Storage 4 | . 4 . . . Processor 2 | . 1 1 . . Hackware . | . . . . . Protection 2 | . . 1 1 . Artifact . | . . . . . Weapon 24 | 2 19 2 1 . Energy Gun 1 | 1 . . . . Energy Cannon . | . . . . . Ballistic Gun 8 | 1 7 . . . Ballistic Cannon 9 | . 8 . 1 . Launcher 1 | . . 1 . . Special Weapon 4 | . 4 . . . Impact Weapon . | . . . . . Slashing Weapon . | . . . . . Piercing Weapon . | . . . . . Special Melee Weapon 1 | . . 1 . . Unidentified Prototypes 1 | . 1 . . . Parts Lost 7 | . 5 2 . . Power . | . . . . . Propulsion 5 | . 3 2 . . Utility 1 | . 1 . . . Weapon 1 | . 1 . . . Highest Loss Streak 2 | . 2 2 . . To Critical Strikes . | . . . . . Average Slot Usage (%) 99 | . 98 99 100 100 Engine 12 | . 11 14 14 14 Core 1 | . 2 . . . Wheel 27 | . 26 27 28 28 Device 9 | . 13 12 6 . Storage 13 | . 13 14 14 14 Protection 2 | . . 1 . 14 Ballistic Gun 7 | . 14 . . . Ballistic Cannon 12 | . 5 14 15 28 Launcher 1 | . . 10 . . Special Weapon 4 | . 7 . . . Special Melee Weapon 2 | . . 2 12 . Naked Turns . | . . . . . Heaviest Build 104 | 8 97 97 104 104 Greatest Support 26 | 20 20 26 26 26 Greatest Overweight (x) 9 | . 9 9 3 5 Average Overweight (x) 2 | . 2 3 3 4 Largest Inventory Capacity 25 | 5 25 25 25 25 Average Capacity 21 | 5 19 25 25 25 Most Carried 25 | 5 25 25 25 25 Average Carried 20 | 3 17 24 24 25 Final Capacity 25 | 5 25 25 25 25 Final Carried 25 | 5 25 25 25 25 Class Distribution -------------------- 92% | Mutant 7% | Scavenger-Mutant Dominant Class ---------------- Mutant | -10/Materials Mutant | -10/Mines Mutant | -10/Exiles Mutant | -9/Mines Resources | -11 -10 -10 -10 -9 ----------- Run | Scr Mat Min Exi Min Matter Collected 1490 | 317 946 82 69 76 Remotely . | . . . . . Salvage Created 1657 | 239 1311 43 . 64 Parts 124 | 17 96 3 . 8 Haulers Intercepted 2 | . 2 . . . Recyclers Shooed 3 | . 3 . . . Parts Field Recycled . | . . . . . Retrieved Matter . | . . . . . Parts Self-Destructed . | . . . . . Prevented . | . . . . . Kills | -11 -10 -10 -10 -9 ------- Run | Scr Mat Min Exi Min Combat Hostiles Destroyed 21 | . 16 1 . 4 Guns 11 | . 11 . . . Cannons 9 | . 5 1 . 3 AOE 1 | . . . . 1 Classes Destroyed 10 | 3 5 1 . 1 Worker 13 | 2 10 . . 1 Builder 1 | . 1 . . . Tunneler 6 | 5 1 . . . Hauler 2 | . 2 . . . Recycler 3 | 1 2 . . . Operator 1 | . 1 . . . Watcher 3 | . 3 . . . Swarmer 3 | . . . . 3 Grunt 17 | . 16 . . 1 Demolisher 1 | . . 1 . . Best Kill Streak 8 | 8 4 1 . 3 Combat Bots Only 3 | . 3 1 . 3 Max Kills in Single Turn 1 | 1 1 1 . 1 Gunslinging . | . . . . . Exploded 1 | . . . . 1 Melee . | . . . . . Uniques/NPCs Destroyed . | . . . . . Combat | -11 -10 -10 -10 -9 -------- Run | Scr Mat Min Exi Min Damage Taken 1228 | . 641 470 . 117 Core 250 | . 139 83 . 28 Absorbed by Shields . | . . . . . Redirected to Shielding 33 | . . 33 . . Core Remaining (%) 100 | 100 . . . . Volleys Fired 152 | 19 118 5 . 10 Largest 2 | 2 2 2 . 2 Hottest 100 | 70 100 78 . 78 Shots Fired 272 | 32 211 9 . 20 Gun 146 | 32 114 . . . Cannon 66 | . 38 8 . 20 Launcher 1 | . . 1 . . Special 59 | . 59 . . . Kinetic 199 | 19 152 8 . 20 Thermal 72 | 13 59 . . . Explosive . | . . . . . Electromagnetic 1 | . . 1 . . Robot Hit Streak 16 | 6 16 4 . 5 Robot Miss Streak 4 | 3 4 4 . 3 Penetration Max . | . . . . . Secondary Targets . | . . . . . Shots Hit Robots 142 | 16 113 4 4 5 Core Hits 68 | 8 51 4 . 5 Critical Kills . | . . . . . Critical Parts Destroyed . | . . . . . Critical Strikes 5 | 3 2 . . . Burn 3 | 3 . . . . Blast 1 | . 1 . . . Sever 1 | . 1 . . . Melee Attacks 4 | . . . 4 . Impact . | . . . . . Slashing . | . . . . . Piercing . | . . . . . Sneak Attacks 4 | . . . 4 . Combat Hostiles . | . . . . . Follow-up Attacks . | . . . . . Damage Inflicted 1993 | 199 1531 103 . 160 Guns 1196 | 199 997 . . . Cannons 497 | . 243 103 . 151 Explosions 9 | . . . . 9 Melee . | . . . . . Ramming . | . . . . . Kinetic 1581 | 87 1240 103 . 151 Thermal 412 | 112 291 . . 9 Explosive . | . . . . . Electromagnetic . | . . . . . Impact . | . . . . . Slashing . | . . . . . Piercing . | . . . . . Highest Corruption . | . . . . . Average Corruption . | . . . . . Corruption Purged . | . . . . . Corruption Blocked . | . . . . . Overload Shots . | . . . . . Overflow Damage . | . . . . . Projectiles . | . . . . . Explosions . | . . . . . Melee . | . . . . . Knockbacks 6 | . 3 1 . 2 Impact . | . . . . . Kinetic 6 | . 3 1 . 2 Secondary . | . . . . . Self-Inflicted Damage . | . . . . . Shots . | . . . . . Rammed . | . . . . . Targets Rammed . | . . . . . Kicked . | . . . . . Crushed . | . . . . . Highest Temperature 144 | 45 54 84 . 144 Average Temperature 31 | 15 14 43 . 52 Received Heat Transfer 402 | . 360 . . 42 Siege Activations . | . . . . . Robots Corrupted . | . . . . . Combat Hostiles . | . . . . . Parts Fried . | . . . . . Impact Corruptions . | . . . . . Robots Melted . | . . . . . Combat Hostiles . | . . . . . Parts Melted 2 | 1 1 . . . Heat Transferred 1567 | 555 962 . . 50 Parts Sabotaged . | . . . . . Parts Stolen . | . . . . . Parts Stripped . | . . . . . Power Chain Reactions . | . . . . . Missiles Intercepted . | . . . . . Alert | -11 -10 -10 -10 -9 ------- Run | Scr Mat Min Exi Min Peak Influence 273 | 40 273 156 . 121 Initial 60 | . 26 60 . . Average 113 | 14 162 60 . 43 Maximum Alert Level 1 | . 1 . . . Low Security (%) 77 | 100 61 100 . 100 Level 1 22 | . 38 . . . Level 2 . | . . . . . Level 3 . | . . . . . Level 4 . | . . . . . Level 5 . | . . . . . High Security . | . . . . . Max Security . | . . . . . Squads Dispatched 6 | . 5 . . 1 Investigation 5 | . 4 . . 1 Extermination . | . . . . . Reinforcement 1 | . 1 . . . Assault . | . . . . . Garrison . | . . . . . Intercept . | . . . . . Searches Triggered . | . . . . . Construction Impeded . | . . . . . Haulers Reinforced . | . . . . . Active Scanning Responses . | . . . . . Cargo Convoy Interrupts . | . . . . . Stealth | -11 -10 -10 -10 -9 --------- Run | Scr Mat Min Exi Min Distress Signals . | . . . . . Communications Jammed . | . . . . . Distress Signals . | . . . . . Times Spotted 35 | . 22 7 . 6 Peak Tracking Total 5 | . 4 5 . 4 Tactical Retreats . | . . . . . Traps | -11 -10 -10 -10 -9 ------- Run | Scr Mat Min Exi Min Traps Triggered 2 | . 2 . . . Indirectly . | . . . . . Trap Hack Attempts 4 | . . 4 . . Triggered . | . . . . . Disarmed . | . . . . . Reprogrammed 1 | . . 1 . . Reused . | . . . . . Traps Extracted 1 | . . 1 . . Installed . | . . . . . Triggered . | . . . . . Most Traps Carried 1 | . . 1 1 1 Machines | -11 -10 -10 -10 -9 ---------- Run | Scr Mat Min Exi Min Machines Disabled 5 | . 2 2 . 1 Max in Single Turn 1 | . 1 1 . 1 Machines Sabotaged . | . . . . . Garrisons Compromised . | . . . . . Overloaded Fab Kills . | . . . . . Hacking | -11 -10 -10 -10 -9 --------- Run | Scr Mat Min Exi Min Machines Accessed 15 | . 11 1 2 1 Terminals 8 | . 8 . . . Fabricators . | . . . . . Repair Stations 1 | . 1 . . . Recycling Units 2 | . 2 . . . Scanalyzers . | . . . . . Garrison Access . | . . . . . Total Hacks 50 | . 46 1 2 1 Successful 34 | . 30 1 2 1 Failed 15 | . 15 . . . Catastrophic 1 | . 1 . . . Database Lockouts 1 | . 1 . . . Manual 28 | . 27 . 1 . Terminals 39 | . 39 . . . Fabricators . | . . . . . Repair Stations 2 | . 2 . . . Recycling Units 5 | . 5 . . . Scanalyzers . | . . . . . Garrison Access . | . . . . . Terminal Hacks 20 | . 16 1 2 1 Record 4 | . 3 . 1 . Robot Analysis 3 | . 3 . . . Prototype ID Bank 2 | . 2 . . . Open Door 2 | . . 1 . 1 Branch Access Points 1 | . 1 . . . Terminal Index 1 | . 1 . . . Locate Traps 1 | . 1 . . . Dispatch Records 1 | . 1 . . . Maintenance Status 1 | . 1 . . . Transport Status 1 | . 1 . . . Recall Investigation 1 | . 1 . . . Hauler Manifests 1 | . 1 . . . EX-Prototype ID Bank 1 | . . . 1 . Fabricator Hacks . | . . . . . Repair Station Hacks 1 | . 1 . . . Scan Component 1 | . 1 . . . Recycling Unit Hacks 2 | . 2 . . . Retrieve Components 2 | . 2 . . . Scanalyzer . | . . . . . Garrison Access Hacks . | . . . . . Unauthorized Hacks 11 | . 11 . . . Terminals 9 | . 9 . . . Assimilate 1 | . 1 . . . Botnet 6 | . 6 . . . Detonate 1 | . 1 . . . Operators 1 | . 1 . . . Fabricators . | . . . . . Repair Stations . | . . . . . Recycling Units 2 | . 2 . . . Recyclers 1 | . 1 . . . Tunnel 1 | . 1 . . . Scanalyzers . | . . . . . Garrison Access . | . . . . . Data Cores Recovered . | . . . . . Used . | . . . . . Hacking Detections 7 | . 7 . . . Full Trace Events 4 | . 4 . . . Feedback Events . | . . . . . Feedback Blocked . | . . . . . Robot Schematics Acquired . | . . . . . Robots Built . | . . . . . Authchips . | . . . . . Time . | . . . . . Total Robot Build Rating . | . . . . . Part Schematics Acquired . | . . . . . Parts Built . | . . . . . Authchips . | . . . . . Time . | . . . . . Total Part Build Rating . | . . . . . Parts Repaired . | . . . . . Time . | . . . . . Parts Recycled . | . . . . . Recycled Matter . | . . . . . Retrieved Matter . | . . . . . Retrieved Components 10 | . 10 . . . Parts Scanalyzed . | . . . . . Part Schematics Acquired . | . . . . . Parts Damaged . | . . . . . Bothacking | -11 -10 -10 -10 -9 ------------ Run | Scr Mat Min Exi Min Used RIF Installer . | . . . . . Robots Hacked 4 | . . . 4 . Non-combat 3 | . . . 3 . Combat 1 | . . . 1 . Robot Hacks Applied 4 | . . . 4 . parse_system 4 | . . . 4 . Relay Couplers Released . | . . . . . Fabnet Peak Effective % . | . . . . . Robots Rewired . | . . . . . Allies Hacked . | . . . . . Hacks Repelled . | . . . . . Allies | -11 -10 -10 -10 -9 -------- Run | Scr Mat Min Exi Min Total Allies 1 | . . . . 1 Largest Group 1 | . . . . 1 Highest-Rated Group 31 | . . . . 31 Highest-Rated Ally 31 | . . . . 31 Total Orders . | . . . . . Ally Attacks 6 | . . . . 6 Total Damage 43 | . . . . 43 Kills 1 | . . . . 1 Allies Corrupted . | . . . . . Allies Melted . | . . . . . Intel | -11 -10 -10 -10 -9 ------- Run | Scr Mat Min Exi Min Robot Analysis Total 3 | . 3 . . . Derelict Logs Recovered 2 | . . 1 . 1 Drone Launches . | . . . . . Drone Recoveries . | . . . . . Exploration | -11 -10 -10 -10 -9 ------------- Run | Scr Mat Min Exi Min Turns Passed 4108 | 123 2027 635 566 757 Spaces Moved 2535 | 75 1158 430 407 465 Core 2 | 2 . . . . Treads . | . . . . . Legs . | . . . . . Wheels 2533 | 73 1158 430 407 465 Hover . | . . . . . Flight . | . . . . . Fastest Speed 50 | 50 80 135 135 135 Average Speed 127 | 79 114 136 135 153 Slowest Speed 215 | 80 215 215 135 155 Overloaded Moves . | . . . . . Propulsion Burnouts . | . . . . . Robots Hopped . | . . . . . Cave-ins Triggered . | . . . . . Exploration Rate (%) 71 | 5 99 89 69 93 Regions Visited 4 Branch Regions 3 Pre-discovered Areas 2 | . 1 . 1 . Known Exits Taken 3 | . 1 1 1 . Unknown Exits Taken 1 | 1 . . . . Scrap Searched 3 | . . 1 . 2 Spaces Dug 4 | . 4 . . . Terrain Destroyed 26 | . 4 17 . 5 Melee . | . . . . . Projectile 4 | . 4 . . . AOE 22 | . . 17 . 5 Terrain Rammed . | . . . . . Walls Destroyed . | . . . . . Machines Disabled . | . . . . . Actions | -11 -10 -10 -10 -9 --------- Run | Scr Mat Min Exi Min Total 3083 | 111 1589 469 423 491 Wait 212 | . 197 7 . 8 Move 2531 | 74 1157 429 406 465 Hop . | . . . . . Pick Up 63 | 9 39 7 5 3 Fast Attach 14 | 5 8 1 . . Attach 12 | 1 7 2 2 . Detach 5 | . 4 . 1 . Swap 43 | . 33 8 1 1 Drop 43 | 3 26 6 4 4 Fire 152 | 19 118 5 . 10 Melee 4 | . . . 4 . Ram . | . . . . . Kick . | . . . . . Crush . | . . . . . Escape Stasis . | . . . . . Rewire . | . . . . . Trap 4 | . . 4 . . Miscellaneous . | . . . . . Route ------- -11/Scrapyard -10/Materials (discovered 5 exits: *Mat x3 / *Min x2) -10/Mines (discovered 2 exits: *Mat / *Exi) -10/Exiles -9/Mines (discovered 2 exits: [*Mat x2]) History --------- Turn | Location | Event 15 | -11/Scrapyard | Discovered new exit (range 16) 124 | -11/Scrapyard | Entered Materials 256 | -10/Materials | Discovered new exit (range 16) 306 | -10/Materials | Build established: Mutant 344 | -10/Materials | Discovered new exit (range 10) 404 | -10/Materials | Discovered new exit (range 16) 425 | -10/Materials | Central database locked down 981 | -10/Materials | Discovered new exit (range 16) 995 | -10/Materials | Build established: Scavenger-Mutant 996 | -10/Materials | Identified exit to Materials 1146 | -10/Materials | Discovered exit to Materials (range 16) 1150 | -10/Materials | Identified exit to Mines 1275 | -10/Materials | Core integrity fell below 50% 1307 | -10/Materials | Build established: Mutant 2151 | -10/Materials | Entered Mines 2161 | -10/Mines | Assembled infested the area 2182 | -10/Mines | Core integrity fell below 20% 2234 | -10/Mines | Learned 4 Materials zone layouts 2531 | -10/Mines | Discovered exit to Materials (range 5) 2646 | -10/Mines | Met a Derelict who couldn't figure out how to use a Trap Extractor 2766 | -10/Mines | Discovered new exit (range 5) 2772 | -10/Mines | Identified exit to Exiles 2786 | -10/Mines | Entered Exiles 2805 | -10/Exiles | Discovered new exit (range 15) 2823 | -10/Exiles | Identified exit to Mines 2851 | -10/Exiles | Met 8R-AWN 2873 | -10/Exiles | Met EX-HEX 2945 | -10/Exiles | Met EX-DEC 2993 | -10/Exiles | Met EX-BIN 3014 | -10/Exiles | Aligned with FarCom system 3015 | -10/Exiles | Given EX-Vault access code 3046 | -10/Exiles | Opened EX-Vault 3055 | -10/Exiles | Found Chronowheel 3083 | -10/Exiles | Warned to stay clear of 0b10 Research branches 3127 | -10/Exiles | Learned location of Zion (-6) 3352 | -10/Exiles | Left Exiles lab with Chronowheel 3352 | -10/Exiles | Entered Mines 3359 | -9/Mines | Received a Rocket Launcher from a helpful Derelict 3382 | -9/Mines | Discovered new exit (range 9) 3557 | -9/Mines | Received a Mining Laser from a helpful Derelict 3911 | -9/Mines | Found a damaged Exp. Sensor Array with a note attached 3915 | -9/Mines | Found Prototype Device 4026 | -9/Mines | Learned Materials garrison access intel 4088 | -9/Mines | Discovered new exit (range 6) 4102 | -9/Mines | Met a Derelict shopkeep closing up shop 4109 | -9/Mines | Destroyed by G-34 Mercenary with Small Laser Last Messages --------------- 03980_ Found Hcp. Battery. 03980_ Found Flail. 03980_ Found Weight Redist. System. 03980_ Found 33 Matter. 03981_ Acquired 33 matter. 04026_ Acquired derelict log, extracted data. Data stored: Materials garrison access intel. 04088_ EXIT=FOUND 04101_ Connecting with SHOP.Sys... >>Open Door Sealed Doors opened. 04102_ SI-RZW(g): "Sorry, the Unaware have moved into these parts and I'm closing up shop. No more sales from me!" 04104_ ALERT: Derelict activity detected in mines. Dispatching investigation squad. 04104_ G-34 Mercenary knocked back. 04106_ SI-RZW(g): "Well, take what you want I guess, I've had enough of this place!" 04107_ G-34 Mercenary destroyed. 04107_ G-34 Mercenary knocked back. Map ----- +----------------------------------------------------+ | ??####### ### ## #########??????? | | ??# #?# #??????? | | ??# ########?# ! ###### #??????? | | ??# #????????## #????# #??????? | | ### #?????????## ! ##???# #??????? | | # #??????????## ###?# #??????? | | # ##???????????#### ] ### ##?????? | | #???????????????### #?????? | | #?????????????????## ! ### #?????? | | ##??????????????????## | #?# #?????? | | #????????????????????### ### ####??? | | ##??????????????????????# ## ##?? | | ##???????????????????????# ## #?? | | #????????????????????????# ## #?? | | ?????????????????????????# ### #?? | | ?????????####???????????? #?## #?? | | ########## ##??????#######???## #?? | | # ##?????#""""??????## #?? | | # ####### ##?????!!|!???????# #?? | | # #?????## ##????# ???????# #?? | | # #??????## #????#= ?####### #?? | | # #???????# #???### ## g # #?? | | # ####????# #???# X # #?? | | # # ##???## | ##???# g%<% # #?? | | #????# #????# g #?? | | #????#####????# @% ####?? | | #?????????????# #????? | | < ##?????????????# #????? | | ###??????????????#############????? | | ####?????????????????????????????????? | | ?????????????????????????????????????? | | | | | | | | | | | | | | | | | | | | | | | | | | | | | | | | | | | | | | | +----------------------------------------------------+ Best States ------------- Heat Dissipation 39 Energy Generation 14 Energy Capacity 280 Matter Stores 300 Matter Capacity 300 Sight Range 16 Terrain Scan Density 10 Armor Coverage 225 Weapon Shielding 33 Evasion (%) 44 Trap Extractor Capacity 6 Item Schematics ----------------- None Robot Schematics ------------------ None Fabricated ------------ Nothing Alien Tech Used ----------------- None Achievements -------------- None Challenges ------------ None Game ------ Seed StormOpticalMatter Manual? 0 Play Time 00:35:36 Cumulative 533.5 hours Start 2022.05.31 @ 15:07:03 End 2022.05.31 @ 15:40:26 Sessions 1 Manual Loads 0 Difficulty Rogue Special Mode None Game No. 433 Rogue 433 Adventurer 0 Explorer 0 Win Type - Total 5 Types 4/0/0/1/0/0/0/0/0 Lore% 71 Gallery% 83 Achievement% 66 Wizard Run 0 Options --------- ASCII 0 Keyboard 1 Movement Numpad Keybinds 0 Fullscreen 1 Font 12/Terminus Map View 83x54 Tactical HUD 1 Map Filters NONE Filters NONE Steam 1 RUN: 54a56eed-6d43-4467-979a-e579d3094d5d